fUST/lending_fUST_20251012
["ID","MTS","AMOUNT","RATE_DAILY","PERIOD"]
[390894260,1760202418536,-3615.91304246,0.0002399,2]
[390894261,1760202418667,-1413.0,0.0002398,10]
[390894262,1760202418697,-445.14,0.0002399,2]
[390894263,1760202418904,-1878.09,0.0002399,3]
[390894264,1760202418932,-939.05,0.0002399,3]
[390894265,1760202418960,-313.02,0.0002399,3]
[390894266,1760202418987,-1200.0,0.00023998,2]
[390894267,1760202419019,-300.0,0.00023999,2]
[390894268,1760202419048,-300.0,0.00023999,2]
[390894269,1760202419151,-139.69,0.00023999,2]
[390894270,1760202419887,-160.31,0.00023999,2]
[390894271,1760202419908,-47.2952691,0.00023999,2]
[390894272,1760202421338,-252.7047309,0.00023999,2]
[390894273,1760202421361,-15.85223611,0.00023999,2]
[390894274,1760202423328,-286.20369376,0.00023999,2]
[390894275,1760202426021,-197.94407013,0.00023999,2]
[390894276,1760202426045,-164.55468332,0.00023999,2]
[390894277,1760202428281,150.0,0.00018934,2]
[390894278,1760202428309,-335.44531668,0.00023999,2]
[390894279,1760202428331,-34.93917944,0.00023999,2]
[390894280,1760202428627,-465.06082056,0.00023999,2]
[390894281,1760202428659,-500.0,0.00023999,2]
[390894282,1760202428689,-500.0,0.00023999,2]
[390894283,1760202428722,-500.0,0.00023999,2]
[390894284,1760202428753,-500.0,0.00023999,2]
[390894285,1760202428785,-500.0,0.00023999,2]
[390894286,1760202428815,-500.0,0.00023999,2]
[390894287,1760202428843,-500.0,0.00023999,2]
[390894288,1760202429008,-500.0,0.00023999,2]
[390894289,1760202429036,-500.0,0.00023999,2]
[390894290,1760202429119,278.84,0.00020655,2]
[390894291,1760202429286,418.26,0.00022376,2]
[390894292,1760202429318,-500.0,0.00023999,2]
[390894293,1760202429345,-500.0,0.00023999,2]
[390894294,1760202429372,-500.0,0.00023999,2]
[390894295,1760202429400,-500.0,0.00023999,2]
[390894296,1760202429431,-500.0,0.00023999,2]
[390894297,1760202429461,-500.0,0.00023999,2]
[390894298,1760202429489,-583.53058909,0.00023999,2]
[390894299,1760202429515,-500.0,0.00023999,2]
[390894300,1760202429542,-500.0,0.00023999,2]
[390894301,1760202429569,-332.94882182,0.00023999,2]
[390894302,1760202429779,-167.05117818,0.00023999,2]
[390894303,1760202429808,-500.0,0.00023999,2]
[390894304,1760202429837,-500.0,0.00023999,2]
[390894305,1760202429864,-500.0,0.00023999,2]
[390894306,1760202429893,-500.0,0.00023999,2]
[390894307,1760202429923,-500.0,0.00023999,2]
[390894308,1760202429951,-500.0,0.00023999,2]
[390894309,1760202429980,-500.0,0.00023999,2]
[390894310,1760202430012,-500.0,0.00023999,2]
[390894311,1760202430040,-191.64694109,0.00023999,2]
[390894312,1760202430228,-702.50212034,0.00024,2]
[390894313,1760202431387,-414.17979024,0.00024,2]
[390894314,1760202436916,-4478.24584008,0.00024,2]
[390894315,1760202436948,-1043.51831984,0.00024,2]
[390894316,1760202439174,-2923.15168016,0.00024,2]
[390894317,1760202439212,-4153.70663968,0.00024,2]
[390894319,1760202440312,-1879.64336032,0.00024,2]
[390894320,1760202440342,-2203.36327936,0.00024,2]
[390894321,1760202440375,-1833.99672064,0.00024,2]
[390894322,1760202440683,-2279.2,0.00024,2]
[390894323,1760202440706,-5441.61,0.00024,2]
[390894324,1760202441034,-1870.24,0.00024,2]
[390894325,1760202441062,-630.84,0.00024,2]
[390894326,1760202441106,-4997.85,0.00024,2]
[390894327,1760202441304,-10000.01,0.00024,2]
[390894328,1760202441444,-10000.01,0.00024,2]
[390894329,1760202441564,-2.13,0.00024,2]
[390894330,1760202441591,-2960.3,0.00024,2]
[390894331,1760202441620,-500.0,0.00024,2]
[390894332,1760202441649,-557.68,0.00024098,2]
[390894333,1760202441736,-1572.3116029,0.00023999,2]
[390894334,1760202441871,-387.4783971,0.00024113,2]
[390894335,1760202441913,-4612.5216029,0.00024113,2]
[390894336,1760202441954,-774.9667942,0.0002414,10]
[390894337,1760202462003,-5000.0,0.00023899,2]
[390894338,1760202462045,-0.01,0.00023999,2]
[390894339,1760202462133,-847.73751648,0.00023999,2]
[390894340,1760202462168,-294.91522064,0.00024075,2]
[390894341,1760202462202,-1200.0,0.00024149,2]
[390894342,1760202462274,-5314.70452576,0.0002415,2]
[390894343,1760202462645,-10000.01,0.0002415,2]
[390894344,1760202462761,-314.72452576,0.0002415,2]
[390894345,1760202462786,-9370.56094848,0.0002415,2]
[390894346,1760202463367,-10000.01,0.000243,2]
[390894347,1760202463698,-409.02,0.000243,2]
[390894348,1760202468252,286.20369376,0.00024062,2]
[390894349,1760202481218,5000.0,0.000243,2]
[390894350,1760202503796,5000.0,0.00024334,2]
[390894351,1760202504250,635.81063736,0.00023899,2]
[390894352,1760202508062,188.45,0.0001884,2]
[390894353,1760202508465,376.9,0.00020552,2]
[390894354,1760202508880,565.35,0.00022265,2]
[390894355,1760202509799,753.8,0.00023978,2]
[390894356,1760202526717,5000.0,0.00024334,2]
[390894357,1760202537782,199.0,0.00021699,5]
[390894358,1760202549346,4801.01,0.00024334,2]
[390894359,1760202549389,198.99,0.00024334,2]
[390894360,1760202556668,205.10522659,0.0002366,2]
[390894361,1760202566096,2106.322669,0.00023367,2]
[390894362,1760202572468,5000.0,0.00024254,2]
[390894363,1760202587123,164.47,0.00018839,2]
[390894364,1760202587577,328.93,0.00020552,2]
[390894365,1760202588533,493.4,0.00022265,2]
[390894366,1760202588973,657.86,0.00023977,2]
[390894367,1760202594843,3355.35,0.00024254,2]
[390894368,1760202594867,1644.65,0.00024254,2]
[390894369,1760202617803,5000.0,0.00024254,2]
[390894399,1760202632231,-476.85797802,0.00024347,2]
[390894400,1760202632241,-43.14202198,0.00024347,3]
[390894401,1760202632252,-113.36797802,0.00024347,3]
[390894402,1760202632261,-469.54,0.00024347,3]
[390894403,1760202632270,-1179.18,0.00024347,10]
[390894404,1760202632280,-982.65,0.00024347,10]
[390894405,1760202632290,-300.0,0.00024355,2]
[390894406,1760202632298,-1200.0,0.00024355,2]
[390894407,1760202632307,-50000.0,0.00024356,2]
[390894408,1760202632316,-500.0,0.00024356,2]
[390894409,1760202632325,-500.0,0.00024356,2]
[390894410,1760202632335,-500.0,0.00024356,2]
[390894411,1760202632344,-500.0,0.00024356,2]
[390894412,1760202632353,-500.0,0.00024356,2]
[390894413,1760202632363,-300.0,0.00024356,2]
[390894414,1760202632372,-500.0,0.00024356,2]
[390894415,1760202632380,-241.77255969,0.00024356,2]
[390894416,1760202632390,-500.0,0.00024356,2]
[390894417,1760202632400,-500.0,0.00024356,2]
[390894418,1760202632409,-500.0,0.00024356,2]
[390894419,1760202632418,-276.30539383,0.00024356,2]
[390894420,1760202632427,-268.25553181,0.00024356,2]
[390894421,1760202632436,-500.0,0.00024356,2]
[390894422,1760202632445,-500.0,0.00024356,2]
[390894423,1760202632454,-500.0,0.00024356,2]
[390894424,1760202632463,-500.0,0.00024356,2]
[390894425,1760202632472,-500.0,0.00024356,2]
[390894426,1760202632481,-500.0,0.00024356,2]
[390894427,1760202632490,-332.2605,0.00024356,2]
[390894428,1760202632499,-500.0,0.00024356,2]
[390894429,1760202632508,-500.0,0.00024356,2]
[390894430,1760202632518,-500.0,0.00024356,2]
[390894431,1760202632527,-500.0,0.00024356,2]
[390894432,1760202632536,-500.0,0.00024356,2]
[390894433,1760202632545,-223.01811859,0.00024356,2]
[390894434,1760202632556,-276.98188141,0.00024356,2]
[390894435,1760202632566,-500.0,0.00024356,2]
[390894436,1760202632574,-500.0,0.00024356,2]
[390894437,1760202632583,-500.0,0.00024356,2]
[390894438,1760202632592,-500.0,0.00024356,2]
[390894439,1760202632601,-103.55328142,0.00024356,2]
[390894457,1760202638310,-307.8364998,0.00024356,2]
[390894492,1760202640257,-88.61021878,0.00024356,2]
[390894494,1760202640266,-500.0,0.00024356,2]
[390894496,1760202640276,-500.0,0.00024356,2]
[390894497,1760202640285,-500.0,0.00024356,2]
[390894498,1760202640294,-500.0,0.00024356,2]
[390894499,1760202640303,-500.0,0.00024356,2]
[390894501,1760202640312,-500.0,0.00024356,2]
[390894503,1760202640321,-500.0,0.00024356,2]
[390894504,1760202640331,-520.5921,0.00024356,2]
[390894505,1760202640340,-500.0,0.00024356,2]
[390894507,1760202640350,-185.79319802,0.00024356,2]
[390894508,1760202640359,-500.0,0.00024356,2]
[390894509,1760202640367,-500.0,0.00024356,2]
[390894510,1760202640377,-500.0,0.00024356,2]
[390894511,1760202640386,-500.0,0.00024356,2]
[390894512,1760202640395,-500.0,0.00024356,2]
[390894513,1760202640408,-500.0,0.00024356,2]
[390894514,1760202640417,-433.08710091,0.00024356,2]
[390894515,1760202640427,-500.0,0.00024356,2]
[390894516,1760202640437,-500.0,0.00024356,2]
[390894517,1760202640446,-500.0,0.00024356,2]
[390894518,1760202640455,-470.41475157,0.00024356,2]
[390894519,1760202640464,-500.0,0.00024356,2]
[390894520,1760202640473,-500.0,0.00024356,2]
[390894521,1760202640481,-500.0,0.00024356,2]
[390894522,1760202640491,-500.0,0.00024356,2]
[390894523,1760202640500,-59057.35666832,0.00024357,2]
[390894524,1760202640532,-22724.05851391,0.00024357,2]
[390894525,1760202640541,-151.0,0.000244,10]
[390894526,1760202640551,-151.0,0.000244,8]
[390894527,1760202640560,-500.0,0.000244,2]
[390894528,1760202640569,-208.48269932,0.00024446,2]
[390894529,1760202640578,-151.0,0.000245,9]
[390894530,1760202640587,-151.0,0.000245,5]
[390894531,1760202640596,-809.42697329,0.00024543,2]
[390894532,1760202640606,-160.0,0.00024544,2]
[390894533,1760202640615,-1465.22583672,0.00024557,2]
[390894534,1760202640624,-1401.58214181,0.00024557,2]
[390894535,1760202640633,-300.63,0.000246,2]
[390894536,1760202640642,-151.0,0.000246,10]
[390894537,1760202640657,-151.0,0.000246,9]
[390894538,1760202640667,-155.0,0.00024656,2]
[390894539,1760202640677,-500.0,0.00024656,2]
[390894540,1760202640686,-163.43362832,0.00024656,2]
[390894541,1760202640696,-229.19051192,0.00024656,2]
[390894542,1760202640706,-500.0,0.00024657,9]
[390894543,1760202640715,-500.0,0.00024657,9]
[390894544,1760202640724,-500.0,0.00024657,9]
[390894545,1760202640733,-543.30197147,0.00024657,9]
[390894546,1760202640742,-500.0,0.00024657,9]
[390894547,1760202640751,-500.0,0.00024657,9]
[390894548,1760202640760,-500.0,0.00024657,9]
[390894549,1760202640769,-500.0,0.00024657,9]
[390894550,1760202640778,-500.0,0.00024657,9]
[390894551,1760202640787,-500.0,0.00024657,9]
[390894552,1760202640796,-364.17894887,0.00024657,9]
[390894553,1760202640805,-501.47435549,0.00024657,9]
[390894554,1760202640815,-500.0,0.00024657,9]
[390894555,1760202640824,-500.0,0.00024657,9]
[390894556,1760202640833,-500.0,0.00024657,9]
[390894557,1760202640843,-501.60521197,0.00024657,9]
[390894558,1760202640852,-500.0,0.00024657,9]
[390894559,1760202640861,-500.0,0.00024657,9]
[390894560,1760202640870,-507.49,0.00024657,9]
[390894561,1760202640879,-532.15911405,0.00024657,9]
[390894562,1760202640888,-500.0,0.00024657,9]
[390894563,1760202640897,-500.0,0.00024657,9]
[390894564,1760202640910,-500.0,0.00024657,9]
[390894565,1760202640920,-500.0,0.00024657,9]
[390894566,1760202640929,-500.0,0.00024657,9]
[390894567,1760202640939,-500.0,0.00024657,9]
[390894568,1760202640948,-500.0,0.00024657,9]
[390894569,1760202640957,-379.58682342,0.00024657,9]
[390894570,1760202640966,-500.0,0.00024657,9]
[390894571,1760202640975,-500.0,0.00024657,9]
[390894572,1760202640985,-500.0,0.00024657,9]
[390894573,1760202640994,-500.0,0.00024657,9]
[390894574,1760202641004,-500.0,0.00024657,9]
[390894575,1760202641014,-500.0,0.00024657,9]
[390894576,1760202641023,-500.0,0.00024657,9]
[390894577,1760202641032,-500.0,0.00024657,9]
[390894578,1760202641042,-500.0,0.00024657,9]
[390894579,1760202641051,-500.0,0.00024657,9]
[390894580,1760202641060,-500.0,0.00024657,9]
[390894581,1760202641070,-500.0,0.00024657,9]
[390894582,1760202641082,-500.0,0.00024657,9]
[390894583,1760202641092,-500.0,0.00024657,9]
[390894584,1760202641101,-500.0,0.00024657,2]
[390894585,1760202641110,-500.0,0.00024657,9]
[390894586,1760202641119,-500.0,0.00024657,9]
[390894587,1760202641128,-500.0,0.00024657,9]
[390894588,1760202641137,-500.0,0.00024657,9]
[390894589,1760202641146,-500.0,0.00024657,9]
[390894590,1760202641158,-500.0,0.00024657,9]
[390894591,1760202641167,-500.0,0.00024657,9]
[390894592,1760202641176,-500.0,0.00024657,9]
[390894593,1760202641186,-500.0,0.00024657,9]
[390894594,1760202641195,-500.0,0.00024657,9]
[390894595,1760202641205,-500.0,0.00024657,9]
[390894596,1760202641214,-500.0,0.00024657,9]
[390894597,1760202641223,-300.86440175,0.00024657,9]
[390894598,1760202641357,-500.0,0.00024657,9]
[390894599,1760202641367,-500.0,0.00024657,9]
[390894600,1760202641376,-500.0,0.00024657,9]
[390894601,1760202641385,-500.0,0.00024657,9]
[390894602,1760202641394,-500.0,0.00024657,9]
[390894603,1760202641406,-500.0,0.00024657,9]
[390894604,1760202641415,-620.13031075,0.00024657,9]
[390894605,1760202641425,-520.0,0.00024657,3]
[390894606,1760202641434,-500.0,0.00024657,9]
[390894607,1760202641443,-500.0,0.00024657,9]
[390894608,1760202641452,-500.0,0.00024657,9]
[390894609,1760202641462,-166.67,0.00024657,2]
[390894610,1760202641471,-500.0,0.00024657,9]
[390894611,1760202641480,-500.0,0.00024657,9]
[390894612,1760202641489,-500.0,0.00024657,9]
[390894613,1760202641499,-500.0,0.00024657,9]
[390894614,1760202641509,-500.0,0.00024657,9]
[390894615,1760202641518,-500.0,0.00024657,9]
[390894616,1760202641527,-500.0,0.00024657,9]
[390894617,1760202641537,-500.0,0.00024657,9]
[390894618,1760202641546,-500.0,0.00024657,9]
[390894619,1760202641555,-500.0,0.00024657,9]
[390894620,1760202641564,-151.0,0.00024657,7]
[390894621,1760202641573,-500.0,0.00024657,9]
[390894622,1760202641582,-500.0,0.00024657,9]
[390894623,1760202641591,-500.0,0.00024657,9]
[390894624,1760202641600,-500.0,0.00024657,9]
[390894625,1760202641609,-500.0,0.00024657,9]
[390894626,1760202641618,-500.0,0.00024657,9]
[390894627,1760202641628,-500.0,0.00024657,9]
[390894628,1760202641637,-500.0,0.00024657,9]
[390894629,1760202641646,-500.0,0.00024657,9]
[390894630,1760202641656,-151.0,0.00024657,7]
[390894631,1760202641665,-500.0,0.00024657,9]
[390894632,1760202641675,-500.0,0.00024657,9]
[390894633,1760202641684,-500.0,0.00024657,9]
[390894634,1760202641693,-500.0,0.00024657,9]
[390894635,1760202641702,-500.57614883,0.00024657,9]
[390894636,1760202641712,-500.0,0.00024657,9]
[390894637,1760202641721,-500.0,0.00024657,9]
[390894638,1760202641730,-500.0,0.00024657,9]
[390894639,1760202641739,-500.0,0.00024657,9]
[390894640,1760202641750,-500.0,0.00024657,9]
[390894641,1760202641759,-500.0,0.00024657,9]
[390894642,1760202641768,-151.0,0.00024657,7]
[390894643,1760202641777,-500.0,0.00024657,9]
[390894644,1760202641786,-500.0,0.00024657,9]
[390894645,1760202641796,-500.0,0.00024657,9]
[390894646,1760202641805,-500.0,0.00024657,9]
[390894647,1760202641814,-500.0,0.00024657,9]
[390894648,1760202641823,-529.87188832,0.00024657,9]
[390894649,1760202641833,-500.0,0.00024657,9]
[390894650,1760202641842,-203.27970239,0.00024657,9]
[390894651,1760202641851,-151.0,0.00024657,7]
[390894652,1760202641860,-151.0,0.00024657,7]
[390894653,1760202641869,-500.0,0.00024657,9]
[390894654,1760202641878,-500.0,0.00024657,9]
[390894655,1760202641887,-500.0,0.00024657,9]
[390894656,1760202641897,-500.0,0.00024657,9]
[390894657,1760202641907,-500.0,0.00024657,9]
[390894658,1760202641916,-500.0,0.00024657,9]
[390894659,1760202641926,-500.0,0.00024657,9]
[390894660,1760202641935,-500.0,0.00024657,9]
[390894661,1760202641945,-500.0,0.00024657,9]
[390894662,1760202641955,-500.0,0.00024657,9]
[390894663,1760202641964,-500.0,0.00024657,9]
[390894664,1760202641974,-500.0,0.00024657,9]
[390894665,1760202641983,-500.0,0.00024657,9]
[390894666,1760202641992,-500.0,0.00024657,9]
[390894667,1760202642001,-500.0,0.00024657,9]
[390894668,1760202642011,-151.0,0.00024657,7]
[390894669,1760202642020,-500.0,0.00024657,9]
[390894670,1760202642029,-500.0,0.00024657,9]
[390894671,1760202642039,-500.0,0.00024657,9]
[390894672,1760202642048,-301.67,0.00024657,9]
[390894673,1760202642058,-500.0,0.00024657,9]
[390894674,1760202642068,-500.0,0.00024657,9]
[390894675,1760202642079,-500.0,0.00024657,9]
[390894676,1760202642089,-500.0,0.00024657,9]
[390894677,1760202642098,-500.0,0.00024657,9]
[390894678,1760202642107,-500.0,0.00024657,9]
[390894679,1760202642118,-500.0,0.00024657,9]
[390894680,1760202642127,-500.0,0.00024657,9]
[390894681,1760202642136,-500.0,0.00024657,2]
[390894682,1760202642147,-500.0,0.00024657,9]
[390894683,1760202642159,-500.0,0.00024657,9]
[390894684,1760202642168,-500.0,0.00024657,9]
[390894685,1760202642177,-500.0,0.00024657,9]
[390894686,1760202642186,-500.0,0.00024657,9]
[390894687,1760202642195,-500.0,0.00024657,9]
[390894688,1760202642204,-500.0,0.00024657,9]
[390894689,1760202642214,-500.0,0.00024657,9]
[390894690,1760202642223,-500.0,0.00024657,9]
[390894691,1760202642233,-500.0,0.00024657,9]
[390894692,1760202642242,-500.0,0.00024657,9]
[390894693,1760202642251,-500.0,0.00024657,9]
[390894694,1760202642262,-500.0,0.00024657,9]
[390894695,1760202642271,-226.13000001,0.00024657,9]
[390894696,1760202642281,-500.0,0.00024657,9]
[390894697,1760202642290,-500.0,0.00024657,9]
[390894698,1760202642300,-500.0,0.00024657,9]
[390894699,1760202642309,-500.0,0.00024657,9]
[390894700,1760202642319,-436.36,0.00024657,9]
[390894701,1760202642328,-500.0,0.00024657,9]
[390894702,1760202642337,-500.0,0.00024657,9]
[390894703,1760202642347,-500.0,0.00024657,9]
[390894704,1760202642356,-500.0,0.00024657,9]
[390894705,1760202642365,-500.0,0.00024657,9]
[390894706,1760202642374,-500.0,0.00024657,9]
[390894707,1760202642384,-500.0,0.00024657,9]
[390894708,1760202642393,-500.0,0.00024657,9]
[390894709,1760202642404,-500.0,0.00024657,9]
[390894710,1760202642413,-500.0,0.00024657,9]
[390894711,1760202642422,-209.68,0.00024657,9]
[390894712,1760202642431,-500.0,0.00024657,9]
[390894713,1760202642441,-500.0,0.00024657,9]
[390894714,1760202642450,-305.23920775,0.00024657,9]
[390894715,1760202642460,-500.0,0.00024657,9]
[390894716,1760202642469,-500.0,0.00024657,9]
[390894717,1760202642478,-500.0,0.00024657,9]
[390894718,1760202642487,-500.0,0.00024657,9]
[390894719,1760202642497,-538.31929527,0.00024657,9]
[390894720,1760202642506,-500.0,0.00024657,9]
[390894721,1760202642515,-297.88,0.00024657,9]
[390894722,1760202642524,-500.0,0.00024657,9]
[390894723,1760202642533,-500.0,0.00024657,9]
[390894724,1760202642542,-500.0,0.00024657,9]
[390894725,1760202642552,-500.0,0.00024657,9]
[390894726,1760202642561,-500.0,0.00024657,9]
[390894727,1760202642570,-500.0,0.00024657,9]
[390894728,1760202642579,-500.0,0.00024657,9]
[390894729,1760202642588,-500.0,0.00024657,9]
[390894730,1760202642597,-500.0,0.00024657,9]
[390894731,1760202642606,-500.0,0.00024657,9]
[390894732,1760202642616,-500.0,0.00024657,9]
[390894733,1760202642624,-500.0,0.00024657,9]
[390894734,1760202642633,-500.0,0.00024657,9]
[390894735,1760202642642,-500.0,0.00024657,9]
[390894736,1760202642657,-369.86162768,0.00024657,9]
[390894737,1760202642667,-500.0,0.00024657,9]
[390894738,1760202642676,-500.0,0.00024657,9]
[390894739,1760202642685,-500.0,0.00024657,9]
[390894740,1760202642695,-500.0,0.00024657,9]
[390894741,1760202642704,-500.0,0.00024657,9]
[390894742,1760202642714,-365.14,0.00024657,9]
[390894744,1760202642723,-500.0,0.00024657,9]
[390894745,1760202642732,-500.0,0.00024657,9]
[390894746,1760202642740,-500.0,0.00024657,9]
[390894747,1760202642750,-500.0,0.00024657,9]
[390894748,1760202642759,-500.0,0.00024657,9]
[390894749,1760202642768,-531.80415546,0.00024657,9]
[390894751,1760202642777,-500.0,0.00024657,9]
[390894753,1760202642786,-500.0,0.00024657,9]
[390894755,1760202642796,-500.0,0.00024657,9]
[390894757,1760202642805,-500.0,0.00024657,9]
[390894759,1760202642815,-500.0,0.00024657,9]
[390894760,1760202642824,-151.0,0.00024657,7]
[390894761,1760202642833,-500.0,0.00024657,9]
[390894762,1760202642842,-500.0,0.00024657,9]
[390894763,1760202642852,-636.4719286,0.00024657,9]
[390894764,1760202642861,-500.0,0.00024657,9]
[390894765,1760202642871,-500.0,0.00024657,9]
[390894766,1760202642880,-151.0,0.00024657,7]
[390894767,1760202642889,-151.0,0.00024657,7]
[390894768,1760202642898,-500.0,0.00024657,9]
[390894769,1760202642910,-151.0,0.00024657,7]
[390894770,1760202642919,-500.0,0.00024657,9]
[390894771,1760202642929,-500.0,0.00024657,9]
[390894772,1760202642938,-500.0,0.00024657,9]
[390894773,1760202642948,-500.0,0.00024657,9]
[390894774,1760202642959,-500.0,0.00024657,9]
[390894775,1760202642969,-500.0,0.00024657,9]
[390894776,1760202642978,-500.0,0.00024657,9]
[390894778,1760202642989,-627.55160979,0.00024657,9]
[390894779,1760202643001,-500.0,0.00024657,9]
[390894780,1760202643011,-500.0,0.00024657,9]
[390894781,1760202643020,-500.0,0.00024657,9]
[390894782,1760202643029,-500.0,0.00024657,9]
[390894783,1760202643038,-470.09024654,0.00024657,9]
[390894784,1760202643047,-500.0,0.00024657,9]
[390894785,1760202643056,-500.0,0.00024657,9]
[390894786,1760202643065,-500.0,0.00024657,9]
[390894787,1760202643077,-500.0,0.00024657,9]
[390894788,1760202643088,-500.0,0.00024657,9]
[390894789,1760202643098,-500.0,0.00024657,9]
[390894790,1760202643107,-502.45846065,0.00024657,9]
[390894791,1760202643116,-500.0,0.00024657,9]
[390894792,1760202643126,-500.0,0.00024657,9]
[390894793,1760202643135,-500.0,0.00024657,9]
[390894794,1760202643144,-500.0,0.00024657,9]
[390894795,1760202643158,-500.0,0.00024657,9]
[390894796,1760202643167,-500.0,0.00024657,9]
[390894797,1760202643176,-500.0,0.00024657,9]
[390894798,1760202643185,-500.0,0.00024657,9]
[390894799,1760202643194,-500.0,0.00024657,9]
[390894800,1760202643203,-599.52,0.00024657,9]
[390894801,1760202643212,-500.0,0.00024657,9]
[390894802,1760202643221,-500.0,0.00024657,9]
[390894803,1760202643231,-500.0,0.00024657,9]
[390894804,1760202643240,-500.0,0.00024657,9]
[390894805,1760202643249,-500.0,0.00024657,9]
[390894806,1760202643258,-356.76,0.00024657,9]
[390894807,1760202643267,-500.0,0.00024657,9]
[390894808,1760202643276,-500.0,0.00024657,9]
[390894809,1760202643285,-500.0,0.00024657,9]
[390894810,1760202643294,-500.0,0.00024657,9]
[390894811,1760202643304,-500.0,0.00024657,9]
[390894812,1760202643313,-500.0,0.00024657,9]
[390894813,1760202643322,-500.0,0.00024657,9]
[390894814,1760202643331,-500.0,0.00024657,9]
[390894816,1760202643340,-500.0,0.00024657,9]
[390894818,1760202643349,-597.22,0.00024657,9]
[390894819,1760202643358,-500.0,0.00024657,9]
[390894820,1760202643367,-500.0,0.00024657,9]
[390894822,1760202643377,-500.0,0.00024657,9]
[390894824,1760202643392,-500.0,0.00024657,9]
[390894825,1760202643403,-500.0,0.00024657,9]
[390894826,1760202643412,-500.0,0.00024657,9]
[390894828,1760202643431,-500.0,0.00024657,9]
[390894829,1760202643441,-500.0,0.00024657,9]
[390894830,1760202643451,-500.0,0.00024657,9]
[390894831,1760202643460,-500.0,0.00024657,9]
[390894832,1760202643469,-500.0,0.00024657,9]
[390894833,1760202643478,-500.0,0.00024657,9]
[390894834,1760202643488,-500.0,0.00024657,9]
[390894835,1760202643497,-500.0,0.00024657,9]
[390894836,1760202643507,-500.0,0.00024657,9]
[390894837,1760202643516,-500.0,0.00024657,9]
[390894838,1760202643525,-500.0,0.00024657,9]
[390894839,1760202643535,-500.0,0.00024657,9]
[390894840,1760202643544,-500.0,0.00024657,9]
[390894841,1760202643553,-500.0,0.00024657,9]
[390894842,1760202643563,-500.0,0.00024657,9]
[390894843,1760202643572,-500.0,0.00024657,9]
[390894844,1760202643581,-500.0,0.00024657,9]
[390894845,1760202643591,-500.0,0.00024657,9]
[390894846,1760202643600,-226.49818828,0.00024657,9]
[390894847,1760202643610,-500.0,0.00024657,9]
[390894848,1760202643619,-452.9779324,0.00024657,9]
[390894849,1760202643629,-500.0,0.00024657,2]
[390894850,1760202643638,-529.24,0.00024657,9]
[390894851,1760202643647,-198.92195714,0.00024657,2]
[390894852,1760202643659,-500.0,0.00024657,9]
[390894853,1760202643668,-151.0,0.00024657,2]
[390894854,1760202643678,-151.0,0.00024657,2]
[390894855,1760202643688,-151.0,0.00024657,2]
[390894856,1760202643697,-500.0,0.00024657,9]
[390894857,1760202643706,-500.0,0.00024657,9]